bitfinex-derivatives/quotes_SOLF0:USTF0_20230904
["timestamp","ask_amount","ask_price","bid_price","bid_amount"]
[1693819395738,0.72024602,19.851,19.847,0.82100295]
[1693819398142,76.69024602,19.851,19.847,0.82100295]
[1693819410956,0.72024602,19.851,19.847,76.79100295]
[1693819416260,0.72024602,19.851,19.85,75.97]
[1693819417660,0.06132025,19.854,19.85,75.97]
[1693819417861,0.06132025,19.854,19.849,75.97]
[1693819419765,0.7274651,19.853,19.849,75.97]
[1693819423268,0.7274651,19.853,19.851,75.97]
[1693819424668,0.06132025,19.854,19.851,75.97]
[1693819428471,75.97,19.858,19.851,75.97]
[1693819429666,0.06132334,19.853,19.851,75.97]
[1693819433066,0.06132334,19.853,19.852,75.97]
[1693819433267,0.06132334,19.853,19.852,112.36086563]
[1693819443068,0.06132334,19.853,19.852,36.39086563]
[1693819454676,0.06132334,19.853,19.852,112.36086563]
[1693819465080,0.06132334,19.853,19.852,75.97]
[1693819473095,0.06132334,19.853,19.851,75.97]
[1693819483997,0.06132334,19.853,19.85,0.82544341]
[1693819507323,15.11,19.852,19.85,0.82544341]
[1693819511328,0.06132334,19.853,19.85,0.82544341]
[1693819515732,15.11,19.852,19.85,0.82544341]
[1693819523142,75.97,19.851,19.843,595.9917]
[1693819523629,15.11,19.85,19.843,595.9917]
[1693819524339,15.11,19.85,19.843,75.97]
[1693819524640,75.97,19.845,19.837,75.97]
[1693819543260,75.97,19.846,19.839,75.97]
[1693819554070,75.97,19.846,19.841,0.72842346]
[1693819559370,75.97,19.845,19.841,0.72842346]
[1693819569781,15.12,19.844,19.841,0.72842346]
[1693819570576,75.97,19.849,19.841,76.69842346]
[1693819573275,15.18133261,19.85,19.842,75.97]
[1693819573276,76.03133261,19.85,19.842,75.97]
[1693819573479,91.15133261,19.85,19.842,111.40140105]
[1693819573680,76.03133261,19.85,19.842,111.40140105]
[1693819573880,91.15133261,19.85,19.842,111.40140105]
[1693819574081,76.03133261,19.85,19.842,111.40140105]
[1693819574280,91.15133261,19.85,19.842,111.40140105]
[1693819574481,76.03133261,19.85,19.842,111.40140105]
[1693819574684,91.15133261,19.85,19.842,111.40140105]
[1693819574883,76.03133261,19.85,19.842,111.40140105]
[1693819575176,91.15133261,19.85,19.842,111.40140105]
[1693819575382,76.03133261,19.85,19.842,111.40140105]
[1693819575581,91.15133261,19.85,19.842,111.40140105]
[1693819575783,76.03133261,19.85,19.842,111.40140105]
[1693819575982,91.15133261,19.85,19.842,111.40140105]
[1693819576183,76.03133261,19.85,19.842,111.40140105]
[1693819576383,91.15133261,19.85,19.842,111.40140105]
[1693819576584,76.03133261,19.85,19.842,111.40140105]
[1693819578786,15.18133261,19.85,19.843,75.97]
[1693819586792,0.06133261,19.85,19.843,75.97]
[1693819589500,0.06133261,19.85,19.844,75.97]
[1693819592404,0.06133261,19.85,19.845,75.97]
[1693819593205,0.06133261,19.85,19.846,75.97]
[1693819606812,0.06133261,19.85,19.846,76.6601204]
[1693819608920,0.06133261,19.85,19.848,75.97]
[1693819613025,0.06133261,19.85,19.849,75.97]
[1693819623028,0.06133261,19.85,19.847,75.97]
[1693819625232,0.06133261,19.85,19.846,0.6901204]
[1693819626631,75.97,19.849,19.846,0.6901204]
[1693819626834,75.97,19.849,19.842,35.43140105]
[1693819627725,75.97,19.849,19.841,75.97]
[1693819640931,115.43397984,19.849,19.841,75.97]
[1693819641331,15.11,19.847,19.84,75.97]
[1693819646447,75.97,19.846,19.839,75.97]
[1693819646843,15.11,19.84,19.833,75.97]
[1693819647142,15.11,19.837,19.83,75.97]
[1693819652553,15.11,19.837,19.828,21.6228]
[1693819652554,75.97,19.837,19.829,75.97]
[1693819663161,15.13,19.835,19.829,75.97]
[1693819667668,75.97,19.834,19.828,21.6228]
[1693819668070,75.97,19.834,19.827,75.97]
[1693819673171,75.97,19.837,19.83,75.97]
[1693819693195,75.97,19.835,19.828,75.97]
[1693819719206,75.97,19.837,19.83,75.97]
[1693819720407,91.1,19.84,19.833,75.97]
[1693819720602,75.97,19.84,19.833,75.97]
[1693819720813,91.1,19.84,19.833,75.97]
[1693819721010,75.97,19.84,19.833,75.97]
[1693819721403,91.1,19.84,19.833,75.97]
[1693819721606,75.97,19.84,19.833,75.97]
[1693819722108,91.1,19.84,19.833,75.97]
[1693819722308,75.97,19.84,19.833,75.97]
[1693819722705,91.1,19.84,19.833,75.97]
[1693819722911,75.97,19.84,19.833,75.97]
[1693819733112,75.97,19.839,19.832,75.97]
[1693819741120,75.97,19.836,19.829,75.97]
[1693819742417,75.97,19.833,19.826,75.97]
[1693819743112,75.97,19.832,19.825,96.21482277]
[1693819746015,75.97,19.828,19.821,75.97]
[1693819746223,15.12,19.827,19.821,75.97]
[1693819746420,75.97,19.825,19.818,75.97]
[1693819754621,75.97,19.827,19.819,75.97]
[1693819761729,15.12,19.825,19.819,75.97]
[1693819763131,75.97,19.825,19.818,75.97]
[1693819772331,75.97,19.825,19.82,0.82869808]
[1693819784539,15.14,19.821,19.82,0.82869808]
[1693819793045,75.97,19.821,19.82,0.82869808]
[1693819793345,75.97,19.821,19.82,0.39793715]
[1693819825966,75.97,19.823,19.82,0.39793715]
[1693819839474,76.78250588,19.823,19.82,0.39793715]
[1693819853082,0.81250588,19.823,19.82,0.39793715]
[1693819859288,75.97,19.829,19.822,75.97]
[1693819860890,75.97,19.829,19.824,0.68823837]
[1693819869295,0.73280029,19.828,19.824,0.68823837]
[1693819872298,0.73280029,19.828,19.825,75.97]
[1693819883113,0.73280029,19.828,19.824,0.68823837]
[1693819903024,0.73280029,19.828,19.825,75.97]
[1693819914340,0.73280029,19.828,19.826,75.97]
[1693819917441,0.73280029,19.828,19.827,75.97]
[1693819966465,75.97,19.842,19.827,75.97]
[1693819966669,91.1,19.842,19.835,75.97]
[1693819967766,130.7167423,19.842,19.835,75.97]
[1693819970266,54.7467423,19.842,19.836,75.97]
[1693819983081,54.7467423,19.842,19.837,75.97]
[1693819993188,54.7467423,19.842,19.84,75.97]
[1693819994388,15.13,19.842,19.84,75.97]
[1693820000385,15.13,19.842,19.839,75.97]
[1693820017196,15.13,19.842,19.836,75.97]
[1693820017404,15.12,19.84,19.833,75.97]
[1693820022611,15.12,19.838,19.832,75.97]
[1693820028811,75.97,19.838,19.831,75.97]
[1693820033718,75.97,19.835,19.828,96.3353]
[1693820033918,75.97,19.835,19.828,75.97]
[1693820034817,75.97,19.835,19.83,0.81173605]
[1693820043020,75.97,19.837,19.83,76.78173605]
[1693820043722,75.97,19.837,19.83,75.97]
[1693820047619,116.41758063,19.837,19.83,75.97]
[1693820052730,75.97,19.835,19.827,75.97]
[1693820057134,75.97,19.835,19.829,0.69214411]
[1693820057336,0.40362224,19.833,19.829,0.69214411]
[1693820082947,75.97,19.832,19.829,0.69214411]
[1693820085148,0.40362224,19.833,19.829,0.69214411]
[1693820090555,76.37362224,19.833,19.829,0.69214411]
[1693820093360,0.40362224,19.833,19.829,0.69214411]
[1693820093559,76.37362224,19.833,19.829,0.69214411]
[1693820097157,75.97,19.83,19.822,75.97]
[1693820101857,75.97,19.824,19.816,75.97]
[1693820105870,75.97,19.821,19.814,19.6797]
[1693820106068,75.97,19.821,19.813,75.97]
[1693820106372,76.42454546,19.821,19.813,75.97]
[1693820106568,75.97,19.821,19.813,75.97]
[1693820110071,75.97,19.818,19.81,75.97]
[1693820113268,75.97,19.817,19.809,75.97]
[1693820120780,75.97,19.816,19.808,75.97]
[1693820147198,15.14,19.815,19.81,0.74291878]
[1693820151001,15.14,19.813,19.81,0.74291878]
[1693820152696,75.97,19.812,19.81,0.74291878]
[1693820158505,76.6632856,19.814,19.81,0.74291878]
[1693820159304,0.6932856,19.814,19.81,0.74291878]
[1693820162007,0.6932856,19.814,19.813,75.97]
[1693820162305,75.97,19.82,19.813,75.97]
[1693820163806,75.97,19.82,19.815,0.71784709]
[1693820166008,75.97,19.817,19.809,75.97]
[1693820167509,75.97,19.817,19.811,0.81199351]
[1693820168108,15.14,19.816,19.811,0.81199351]
[1693820169013,75.97,19.817,19.811,0.81199351]
[1693820169318,0.76892978,19.815,19.811,0.81199351]
[1693820176209,0.76892978,19.815,19.812,75.97]
[1693820181021,0.76892978,19.815,19.811,76.78199351]
[1693820183022,0.76892978,19.815,19.811,0.81199351]
[1693820183623,76.73892978,19.815,19.811,0.81199351]
[1693820183921,76.73892978,19.815,19.811,0.67667854]
[1693820184327,76.80037072,19.815,19.811,0.67667854]
[1693820190531,75.97,19.813,19.811,0.67667854]
[1693820193934,75.97,19.813,19.811,0.73813188]
[1693820200737,76.86181189,19.815,19.811,0.73813188]
[1693820203132,75.97,19.814,19.811,0.73813188]
[1693820209940,75.97,19.812,19.811,0.73813188]
[1693820213551,91.11,19.812,19.811,0.73813188]
[1693820216050,15.14,19.811,19.802,75.97]
[1693820216261,75.97,19.81,19.803,500.0]
[1693820217755,0.81602513,19.808,19.805,0.79033761]
[1693820223863,15.14,19.807,19.805,0.79033761]
[1693820224065,75.97,19.806,19.805,0.79033761]
[1693820225263,91.11,19.806,19.805,0.79033761]
[1693820225966,75.97,19.806,19.805,0.79033761]
[1693820229966,75.97,19.806,19.805,0.79033761]
[1693820236365,91.11,19.806,19.805,0.79033761]
[1693820244270,75.97,19.806,19.805,0.79033761]
[1693820290628,0.81602513,19.808,19.805,0.79033761]
[1693820290823,75.97,19.806,19.805,0.79033761]
[1693820299634,0.81602513,19.808,19.805,0.79033761]
[1693820311235,76.78602513,19.808,19.805,0.79033761]
[1693820359877,76.78602513,19.808,19.805,76.76033761]
[1693820359878,0.81602513,19.808,19.805,76.76033761]
[1693820360082,0.06145335,19.811,19.805,76.76033761]
[1693820363181,0.06145335,19.811,19.806,109.64835565]
[1693820365682,0.12288211,19.815,19.81,75.97]
[1693820365886,0.12288211,19.815,19.812,575.97]
[1693820366176,76.15428631,19.819,19.812,575.97]
[1693820366986,76.15428631,19.819,19.814,0.78446581]
[1693820369382,0.34873976,19.818,19.814,0.78446581]
[1693820373188,0.34873976,19.818,19.814,76.75446581]
[1693820375089,15.49873976,19.818,19.814,0.78446581]
[1693820375996,75.97,19.816,19.814,0.78446581]
[1693820378095,15.49873976,19.818,19.814,0.78446581]
[1693820381193,0.34873976,19.818,19.814,0.78446581]
[1693820383696,15.49873976,19.818,19.814,0.78446581]
[1693820388797,15.49873976,19.818,19.814,0.84590983]
[1693820391701,0.34873976,19.818,19.814,0.84590983]
[1693820393107,15.48873976,19.818,19.814,0.84590983]
[1693820394608,15.61160325,19.818,19.814,0.84590983]
[1693820403207,76.44160325,19.818,19.814,0.84590983]
[1693820422922,75.97,19.816,19.814,0.84590983]
[1693820443037,75.97,19.815,19.814,0.84590983]
[1693820446644,75.97,19.815,19.807,75.97]
[1693820446841,75.97,19.811,19.804,75.97]
[1693820448345,75.97,19.81,19.803,75.97]
[1693820453345,75.97,19.81,19.803,111.87769615]
[1693820462150,75.97,19.81,19.805,0.83096434]
[1693820462349,0.77752372,19.808,19.805,0.83096434]
[1693820468051,0.77752372,19.808,19.792,500.0]
[1693820468052,15.15,19.805,19.792,500.0]
[1693820468352,0.77752372,19.808,19.795,75.97]
[1693820468353,75.97,19.803,19.795,75.97]
[1693820468657,75.97,19.806,19.797,75.97]
[1693820468948,75.97,19.806,19.797,107.2680908]
[1693820471255,75.97,19.807,19.8,75.97]
[1693820473253,35.6745,19.813,19.801,75.97]
[1693820473254,75.97,19.809,19.801,75.97]
[1693820476352,0.76104808,19.807,19.803,0.79309326]
[1693820478662,0.76104808,19.807,19.805,0.06147194]
[1693820492268,15.15,19.805,19.803,0.79309326]
[1693820493064,75.97,19.804,19.803,0.79309326]
[1693820500776,76.03,19.804,19.803,0.79309326]
[1693820507788,75.97,19.804,19.803,0.79309326]
[1693820515986,0.06147195,19.805,19.803,0.79309326]
[1693820522697,75.97,19.806,19.803,0.79309326]
[1693820523599,75.97,19.806,19.805,0.06147194]
[1693820525600,91.12,19.806,19.805,0.06147194]
[1693820530104,15.15,19.805,19.803,0.79309326]
[1693820530304,75.97,19.804,19.803,0.79309326]
[1693820530901,91.12,19.804,19.803,0.79309326]
[1693820535506,15.15,19.803,19.791,96.418]
[1693820535706,75.97,19.799,19.791,96.418]
[1693820535909,75.97,19.795,19.791,20.448]
[1693820536107,75.97,19.795,19.788,115.3440535]
[1693820543111,75.97,19.796,19.788,115.3440535]
[1693820545117,0.8328213,19.794,19.788,115.3440535]
[1693820545519,0.8328213,19.794,19.788,351.07046605]
[1693820545717,0.8328213,19.794,19.789,235.72641255]
[1693820545913,0.8328213,19.794,19.79,235.72641255]
[1693820546114,0.8328213,19.794,19.791,235.72641255]
[1693820546414,0.8328213,19.794,19.788,115.3440535]
[1693820558628,0.8328213,19.794,19.788,39.3740535]
[1693820558824,0.8328213,19.794,19.787,75.97]
[1693820561935,0.8328213,19.794,19.787,115.98212733]
[1693820563038,0.8328213,19.794,19.788,75.97]
[1693820578856,15.16,19.793,19.788,75.97]
[1693820579062,75.97,19.792,19.785,75.97]
[1693820583068,15.16,19.79,19.784,75.97]
[1693820583363,15.16,19.79,19.784,117.01646464]
[1693820584561,15.16,19.79,19.784,41.04646464]
[1693820584768,0.45454546,19.803,19.778,75.97]
[1693820584769,75.97,19.786,19.778,75.97]
[1693820585363,75.97,19.786,19.776,40.29090908]
[1693820585561,75.97,19.789,19.781,75.97]
[1693820585767,75.97,19.792,19.784,75.97]
[1693820586066,75.97,19.796,19.787,75.97]
[1693820592464,75.97,19.788,19.78,75.97]
[1693820593169,75.97,19.79,19.782,75.97]
[1693820594570,75.97,19.789,19.781,75.97]
[1693820601573,75.97,19.786,19.779,75.97]
[1693820602377,75.97,19.786,19.778,75.97]
[1693820606181,75.97,19.783,19.775,75.97]
[1693820613178,75.97,19.78,19.777,0.68451409]
[1693820614086,75.97,19.78,19.773,75.97]
[1693820627798,75.97,19.777,19.769,75.97]
[1693820631903,75.97,19.777,19.769,116.22480282]
[1693820632704,0.45454546,19.784,19.769,116.22480282]
[1693820632705,75.97,19.776,19.769,116.22480282]
[1693820636207,75.97,19.776,19.769,40.25480282]
[1693820636407,75.97,19.776,19.768,75.97]
[1693820644108,75.97,19.776,19.766,70.91600705]
[1693820644310,75.97,19.776,19.768,75.97]
[1693820659332,15.17,19.775,19.768,75.97]
[1693820663029,75.97,19.774,19.766,146.88600705]
[1693820678537,76.42454546,19.78,19.772,75.97]
[1693820678735,15.17,19.796,19.775,75.97]
[1693820678736,15.17,19.781,19.775,75.97]
[1693820679542,75.97,19.779,19.771,500.0]
[1693820679743,117.82329317,19.779,19.772,75.97]
[1693820679940,75.97,19.779,19.772,75.97]
[1693820681237,15.17,19.772,19.763,0.12320269]
[1693820681444,75.97,19.773,19.766,75.97]
[1693820681636,75.97,19.773,19.766,110.34580855]
[1693820681939,75.97,19.775,19.768,75.97]
[1693820683035,15.17,19.775,19.769,75.97]
[1693820683743,75.97,19.776,19.769,75.97]
[1693820684737,97.0426,19.778,19.771,75.97]
[1693820685743,97.0426,19.778,19.774,75.97]
[1693820685744,21.0726,19.778,19.774,75.97]
[1693820686345,75.97,19.781,19.774,75.97]
[1693820693250,75.97,19.783,19.776,75.97]
[1693820702855,0.71828995,19.781,19.778,0.77753037]
[1693820703051,0.71828995,19.781,19.778,76.74753037]
[1693820707753,0.71828995,19.781,19.778,0.77753037]
[1693820709062,0.71828995,19.781,19.778,76.74753037]
[1693820710666,0.77828995,19.781,19.778,76.74753037]
[1693820711366,75.97,19.785,19.778,76.74753037]
[1693820713158,75.97,19.787,19.78,75.97]
[1693820714661,91.59454546,19.789,19.781,75.97]
[1693820718965,0.45454546,19.789,19.783,75.97]
[1693820719163,15.17,19.789,19.783,75.97]
[1693820723060,15.17,19.789,19.782,75.97]
[1693820723364,15.62454546,19.789,19.782,75.97]
[1693820723865,15.62454546,19.789,19.781,0.06154651]
[1693820723866,0.45454546,19.789,19.784,75.97]
[1693820724062,0.45454546,19.791,19.784,75.97]
[1693820724961,0.12306843,19.785,19.784,75.97]
[1693820733376,0.45454546,19.791,19.784,75.97]
[1693820738881,0.45454546,19.791,19.787,75.97]
[1693820739082,0.45454546,19.792,19.787,75.97]
[1693820739283,75.97,19.791,19.784,75.97]
[1693820740482,0.12306843,19.785,19.784,75.97]
[1693820743087,0.12306843,19.785,19.783,75.97]
[1693820747487,15.16,19.789,19.783,75.97]
[1693820753196,75.97,19.789,19.782,75.97]
[1693820753399,97.614,19.789,19.782,75.97]
[1693820754494,0.12306843,19.785,19.782,75.97]
[1693820762402,97.614,19.789,19.782,75.97]
[1693820763102,75.97,19.788,19.781,75.97]
[1693820763601,75.97,19.788,19.781,76.03154651]
[1693820768498,0.12306843,19.785,19.781,76.03154651]
[1693820773111,0.12306843,19.785,19.781,0.06154651]
[1693820775807,15.17,19.783,19.777,75.97]
[1693820776604,75.97,19.781,19.774,75.97]
[1693820776910,116.56005123,19.781,19.774,75.97]
[1693820778010,75.97,19.779,19.772,75.97]
[1693820783217,75.97,19.778,19.77,75.97]
[1693820793024,75.97,19.778,19.764,40.99494438]
[1693820793225,75.97,19.775,19.768,75.97]
[1693820796432,75.97,19.773,19.765,75.97]
[1693820797733,15.17,19.772,19.765,75.97]
[1693820800129,75.97,19.773,19.765,75.97]
[1693820803039,75.97,19.774,19.766,75.97]
[1693820808242,75.97,19.772,19.765,75.97]
[1693820818149,75.97,19.772,19.761,39.51870576]
[1693820818150,75.97,19.769,19.762,75.97]
[1693820825261,75.97,19.766,19.758,75.97]
[1693820831369,75.97,19.766,19.76,0.82299529]
[1693820833061,75.97,19.764,19.76,0.82299529]
[1693820833866,75.97,19.764,19.756,75.97]
[1693820834768,75.97,19.764,19.758,0.77482366]
[1693820835876,15.17,19.763,19.758,0.77482366]
[1693820836266,75.97,19.761,19.758,0.77482366]
[1693820837969,44.86353824,19.764,19.758,0.02666441]
[1693820837970,91.14,19.759,19.758,0.02666441]
[1693820838176,15.17,19.758,19.75,75.97]
[1693820840271,75.97,19.755,19.747,75.97]
[1693820842767,75.97,19.752,19.744,75.97]
[1693820843072,75.97,19.751,19.743,75.97]
[1693820843378,75.97,19.75,19.742,75.97]
[1693820845779,75.97,19.752,19.745,75.97]
[1693820857786,15.19,19.751,19.745,75.97]
[1693820858387,75.97,19.752,19.745,75.97]
[1693820863192,75.97,19.75,19.742,75.97]
[1693820868792,75.97,19.753,19.745,75.97]
[1693820871192,75.97,19.755,19.748,75.97]
[1693820873301,75.97,19.756,19.749,75.97]
[1693820875002,76.03,19.756,19.749,75.97]
[1693820880501,76.03,19.756,19.751,75.97]
[1693820880502,0.06,19.756,19.751,75.97]
[1693820880807,75.97,19.758,19.751,75.97]
[1693820893315,75.97,19.757,19.75,75.97]
[1693820898514,75.97,19.757,19.756,0.0616244]
[1693820900919,91.15,19.757,19.756,0.0016244]
[1693820901220,15.18,19.756,19.747,75.97]
[1693820901423,75.97,19.754,19.747,75.97]
[1693820903124,75.97,19.752,19.745,75.97]
[1693820903424,75.97,19.754,19.747,75.97]
[1693820913235,15.19,19.752,19.745,75.97]
[1693820919238,97.4336,19.753,19.745,75.97]
[1693820933251,21.4636,19.753,19.747,75.97]
[1693820933454,97.4336,19.753,19.746,75.97]
[1693820934047,15.19,19.752,19.746,75.97]
[1693820935549,75.97,19.751,19.741,41.37246962]
[1693820935750,75.97,19.751,19.743,75.97]
[1693820936057,15.19,19.747,19.73,20.9984]
[1693820936253,15.19,19.747,19.731,12.60395877]
[1693820936553,0.45454546,19.746,19.74,75.97]
[1693820937953,91.16,19.745,19.737,75.97]
[1693820938254,75.97,19.745,19.737,75.97]
[1693820940048,75.97,19.745,19.73,257.21790997]
[1693820940250,0.45454546,19.751,19.73,20.9984]
[1693820940251,75.97,19.742,19.73,20.9984]
[1693820940456,75.97,19.742,19.734,75.97]
[1693820949966,75.97,19.742,19.734,116.07126581]
[1693820951274,15.19,19.741,19.734,116.07126581]
[1693820953276,75.97,19.741,19.734,116.07126581]
[1693820958784,75.97,19.741,19.734,75.97]
[1693820963181,15.19,19.739,19.732,75.97]
[1693820969787,75.97,19.739,19.731,75.97]
[1693820972692,75.97,19.736,19.728,152.56909928]
[1693820973587,76.42454546,19.736,19.728,152.56909928]
[1693820973790,75.97,19.736,19.728,152.56909928]
[1693820974186,76.42454546,19.736,19.728,152.56909928]
[1693820974482,75.97,19.736,19.728,152.56909928]
[1693820974883,76.42454546,19.736,19.728,152.56909928]
[1693820975088,75.97,19.736,19.728,152.56909928]
[1693820975286,76.42454546,19.736,19.728,152.56909928]
[1693820975487,75.97,19.736,19.728,152.56909928]
[1693820975688,76.42454546,19.736,19.728,152.56909928]
[1693820975890,75.97,19.736,19.728,152.56909928]
[1693820976089,76.42454546,19.736,19.728,152.56909928]
[1693820976285,75.97,19.736,19.728,152.56909928]
[1693820976489,76.42454546,19.736,19.728,152.56909928]
[1693820976684,75.97,19.736,19.728,152.56909928]
[1693820976884,76.42454546,19.736,19.728,152.56909928]
[1693820977090,75.97,19.736,19.728,152.56909928]
[1693820977291,15.2,19.735,19.728,115.86873417]
[1693820983089,75.97,19.734,19.728,39.89873417]
[1693820983288,75.97,19.734,19.726,75.97]
[1693820985000,75.97,19.734,19.726,117.49380951]
[1693820993205,75.97,19.734,19.727,75.97]
[1693820993797,75.97,19.735,19.727,75.97]
[1693821002216,75.97,19.735,19.727,115.60912822]
[1693821003313,75.97,19.731,19.724,75.97]
[1693821008915,75.97,19.734,19.726,75.97]
[1693821013217,15.2,19.731,19.724,75.97]
[1693821022126,15.2,19.727,19.721,75.97]
[1693821024917,15.26,19.727,19.721,75.97]
[1693821032526,15.2,19.727,19.721,75.97]
[1693821033423,75.97,19.728,19.721,75.97]
[1693821033930,15.21,19.727,19.721,75.97]
[1693821036329,75.97,19.728,19.721,75.97]
[1693821043028,75.97,19.73,19.723,75.97]
[1693821054033,75.97,19.731,19.723,75.97]
[1693821063043,75.97,19.731,19.724,75.97]
[1693821073855,96.7616,19.734,19.726,75.97]
[1693821076850,15.2,19.733,19.726,75.97]
[1693821083159,91.17,19.733,19.726,75.97]
[1693821088163,91.17,19.733,19.728,75.97]
[1693821088164,15.2,19.733,19.728,75.97]
[1693821088363,15.2,19.733,19.728,110.02268454]
[1693821089668,15.2,19.733,19.728,75.97]
[1693821097470,15.2,19.746,19.731,75.97]
[1693821097675,15.2,19.741,19.735,75.97]
[1693821105979,75.97,19.742,19.735,75.97]
[1693821106177,97.6912,19.746,19.738,75.97]
[1693821107378,15.2,19.748,19.741,75.97]
[1693821107580,23.32959805,19.768,19.737,500.0]
[1693821107581,96.4552,19.752,19.744,75.97]
[1693821114173,96.4552,19.752,19.738,21.6322]
[1693821114174,20.4852,19.752,19.746,75.97]
[1693821114579,75.97,19.753,19.746,75.97]
[1693821115577,21.8642,19.757,19.746,75.97]
[1693821115787,15.2,19.755,19.749,75.97]
[1693821119983,75.97,19.756,19.749,75.97]
[1693821120980,15.2,19.755,19.749,75.97]
[1693821126880,75.97,19.754,19.746,75.97]
[1693821127788,75.97,19.754,19.747,75.97]
[1693821130190,75.97,19.753,19.745,75.97]
[1693821130390,96.5663,19.753,19.745,75.97]
[1693821140102,20.5963,19.753,19.741,39.55037974]
[1693821140301,20.5963,19.753,19.738,61.8670178]
[1693821140601,0.45454546,19.759,19.738,61.8670178]
[1693821140802,66.25463372,19.758,19.738,61.8670178]
[1693821141002,44.87133372,19.758,19.738,61.8670178]
[1693821141204,76.63,19.753,19.745,76.63]
[1693821143106,15.19,19.75,19.744,76.63]
[1693821150113,21.3833,19.757,19.738,61.8670178]
[1693821150311,15.19,19.75,19.744,76.63]
[1693821153817,76.63,19.75,19.743,76.63]
[1693821156415,76.63,19.747,19.74,76.63]
[1693821156615,76.63,19.744,19.736,76.63]
[1693821160322,15.19,19.741,19.735,76.63]
[1693821173034,76.63,19.743,19.736,76.63]
[1693821178437,76.63,19.746,19.739,76.63]
[1693821187347,76.63,19.743,19.736,76.63]
[1693821190441,76.63,19.742,19.735,76.63]
[1693821193051,76.63,19.741,19.734,76.63]
[1693821213165,76.63,19.74,19.733,117.37531645]
[1693821219168,76.63,19.74,19.733,76.63]
[1693821220567,76.63,19.739,19.732,76.63]
[1693821223171,76.63,19.737,19.73,76.63]
[1693821224573,19.8605,19.743,19.729,245.81237759]
[1693821224774,15.2,19.733,19.726,76.63]
[1693821225370,76.63,19.734,19.726,76.63]
[1693821233078,76.63,19.732,19.725,71.1555038]
[1693821234075,76.69,19.734,19.726,76.63]
[1693821236976,0.06,19.734,19.73,76.63]
[1693821237180,0.06,19.734,19.726,500.0]
[1693821237181,76.63,19.74,19.733,76.63]
[1693821242689,76.63,19.74,19.734,0.06169322]
[1693821243190,76.63,19.739,19.734,0.06169322]
[1693821245493,76.63,19.736,19.734,0.06169322]
[1693821246589,76.63,19.736,19.729,76.63]
[1693821246994,76.63,19.736,19.729,117.48916919]
[1693821247395,76.63,19.736,19.729,76.63]
[1693821264804,76.63,19.739,19.731,76.63]
[1693821272813,76.63,19.739,19.734,0.06169322]
[1693821276313,76.63,19.739,19.731,76.63]
[1693821284824,76.63,19.738,19.73,76.63]
[1693821293135,76.63,19.738,19.727,245.81842375]
[1693821293136,76.63,19.737,19.729,76.63]
[1693821306247,76.63,19.737,19.729,117.38341771]
[1693821313749,76.63,19.737,19.729,363.20184146]
[1693821313950,76.63,19.737,19.73,245.81842375]
[1693821314250,76.63,19.737,19.729,117.38341771]